[Event "*** Titled Tuesday Blitz"]
[Site "Chess.com"]
[Date "2020.10.27"]
[Round "1"]
[White "Skat2704"]
[Black "suyu28"]
[Result "1-0"]
[WhiteElo "2407"]
[BlackElo "2622"]
[TimeControl "180+1"]
[EndTime "10:06:44 PDT"]
[Termination "Skat2704 won by checkmate"]

1. d4 {[%clk 0:03:00.9]} 1... f5 {[%clk 0:02:58.7]} 2. c4 {[%clk 0:03:00.6]}
2... Nf6 {[%clk 0:02:59]} 3. g3 {[%clk 0:03:00.8]} 3... g6 {[%clk 0:02:59.5]} 4.
Bg2 {[%clk 0:03:00.9]} 4... Bg7 {[%clk 0:03:00.2]} 5. Nh3 {[%clk 0:03:00.9]}
5... O-O {[%clk 0:03:00.9]} 6. O-O {[%clk 0:03:00.2]} 6... d6 {[%clk 0:03:01.4]}
7. d5 {[%clk 0:03:00.2]} 7... c6 {[%clk 0:02:59.7]} 8. Nc3 {[%clk 0:02:59.6]}
8... e5 {[%clk 0:02:58.7]} 9. dxe6 {[%clk 0:02:59.4]} 9... Bxe6 {[%clk
0:02:58.6]} 10. Qb3 {[%clk 0:02:59.7]} 10... Qe7 {[%clk 0:02:03.4]} 11. Ng5
{[%clk 0:02:57.6]} 11... Bc8 {[%clk 0:02:02]} 12. Bf4 {[%clk 0:02:55.1]} 12...
Kh8 {[%clk 0:01:48.7]} 13. Rad1 {[%clk 0:02:52.7]} 13... Ne8 {[%clk 0:01:41.5]}
14. Qa3 {[%clk 0:02:47.5]} 14... h6 {[%clk 0:01:38.1]} 15. Nf3 {[%clk 0:02:42]}
15... Rf6 {[%clk 0:01:36.3]} 16. Rfe1 {[%clk 0:02:40.2]} 16... g5 {[%clk
0:01:35.5]} 17. Be3 {[%clk 0:02:39]} 17... Na6 {[%clk 0:01:28.5]} 18. Bd4 {[%clk
0:02:37.7]} 18... Rf8 {[%clk 0:01:28.4]} 19. Bxg7+ {[%clk 0:02:37.3]} 19... Qxg7
{[%clk 0:01:27.7]} 20. e4 {[%clk 0:02:35.6]} 20... fxe4 {[%clk 0:01:22.1]} 21.
Nxe4 {[%clk 0:02:32.9]} 21... Bg4 {[%clk 0:01:21.9]} 22. Nxd6 {[%clk 0:02:30.1]}
22... Nxd6 {[%clk 0:01:18.9]} 23. Rxd6 {[%clk 0:02:28.6]} 23... Rf7 {[%clk
0:00:57.9]} 24. h3 {[%clk 0:02:17.9]} 24... Bxf3 {[%clk 0:00:57.2]} 25. Bxf3
{[%clk 0:02:17.8]} 25... Raf8 {[%clk 0:00:58.1]} 26. Re3 {[%clk 0:02:17.5]}
26... Nb8 {[%clk 0:00:38.2]} 27. Kg2 {[%clk 0:02:14.3]} 27... Nd7 {[%clk
0:00:37.4]} 28. Rde6 {[%clk 0:01:59.1]} 28... h5 {[%clk 0:00:28.5]} 29. Qd6
{[%clk 0:01:54.5]} 29... Nf6 {[%clk 0:00:27.8]} 30. g4 {[%clk 0:01:47.9]} 30...
hxg4 {[%clk 0:00:27.4]} 31. hxg4 {[%clk 0:01:47.8]} 31... Qh7 {[%clk 0:00:25.5]}
32. Re1 {[%clk 0:01:41]} 32... Qg7 {[%clk 0:00:09.5]} 33. Rh1+ {[%clk
0:01:39.9]} 33... Nh7 {[%clk 0:00:08.6]} 34. Rh3 {[%clk 0:01:30.3]} 34... Qxb2
{[%clk 0:00:08.1]} 35. Reh6 {[%clk 0:01:26.8]} 35... c5 {[%clk 0:00:07.5]} 36.
Qg6 {[%clk 0:01:25.2]} 36... Qg7 {[%clk 0:00:06.1]} 37. Rxh7+ {[%clk 0:01:17.1]}
37... Qxh7 {[%clk 0:00:07]} 38. Rxh7+ {[%clk 0:01:16.8]} 38... Rxh7 {[%clk
0:00:06.6]} 39. Qxg5 {[%clk 0:01:15.8]} 39... Rhf7 {[%clk 0:00:02.6]} 40. Qh6+
{[%clk 0:01:13.7]} 40... Rh7 {[%clk 0:00:02.5]} 41. Qxf8# {[%clk 0:01:12.7]} 1-0

[Event "*** Titled Tuesday Blitz"]
[Site "Chess.com"]
[Date "2020.10.27"]
[Round "1"]
[White "Gulkov_Igor"]
[Black "Sanan_Sjugirov"]
[Result "0-1"]
[WhiteElo "2474"]
[BlackElo "2930"]
[TimeControl "180+1"]
[EndTime "10:06:45 PDT"]
[Termination "Sanan_Sjugirov won by resignation"]

1. Nf3 {[%clk 0:02:57.3]} 1... c5 {[%clk 0:02:58]} 2. c4 {[%clk 0:02:56.6]} 2...
Nc6 {[%clk 0:02:56]} 3. d4 {[%clk 0:02:55.6]} 3... cxd4 {[%clk 0:02:55.8]} 4.
Nxd4 {[%clk 0:02:55.5]} 4... Nf6 {[%clk 0:02:56.3]} 5. Nc3 {[%clk 0:02:54.6]}
5... e6 {[%clk 0:02:56.1]} 6. Bf4 {[%clk 0:02:52.2]} 6... d5 {[%clk 0:02:41]} 7.
cxd5 {[%clk 0:02:46.6]} 7... Nxd5 {[%clk 0:02:38.4]} 8. Nxc6 {[%clk 0:02:46]}
8... bxc6 {[%clk 0:02:37.1]} 9. Bd2 {[%clk 0:02:46]} 9... Rb8 {[%clk 0:02:27.1]}
10. e4 {[%clk 0:02:39]} 10... Nf6 {[%clk 0:02:16.9]} 11. Qc2 {[%clk 0:02:26.7]}
11... Bb4 {[%clk 0:02:07.9]} 12. Be2 {[%clk 0:02:07.2]} 12... O-O {[%clk
0:01:59.3]} 13. O-O {[%clk 0:02:03.8]} 13... e5 {[%clk 0:01:51.2]} 14. Rfd1
{[%clk 0:01:59.4]} 14... Be6 {[%clk 0:01:45.6]} 15. Be3 {[%clk 0:01:48.2]} 15...
Qa5 {[%clk 0:01:38.3]} 16. Na4 {[%clk 0:01:32.6]} 16... Be7 {[%clk 0:00:51.8]}
17. b3 {[%clk 0:01:20.6]} 17... c5 {[%clk 0:00:39.4]} 18. f3 {[%clk 0:01:08.2]}
18... Rfc8 {[%clk 0:00:36]} 19. Nb2 {[%clk 0:00:52.6]} 19... Qc7 {[%clk
0:00:34.5]} 20. Nc4 {[%clk 0:00:46.1]} 20... Nd7 {[%clk 0:00:33.4]} 21. Rac1
{[%clk 0:00:39.4]} 21... Nb6 {[%clk 0:00:33.3]} 22. Qc3 {[%clk 0:00:29.7]} 22...
Nd7 {[%clk 0:00:21.1]} 23. Qa5 {[%clk 0:00:27.7]} 23... Qc6 {[%clk 0:00:18.6]}
24. Qc3 {[%clk 0:00:27.2]} 24... f6 {[%clk 0:00:15.6]} 25. Na5 {[%clk
0:00:27.1]} 25... Qc7 {[%clk 0:00:15.8]} 26. Bc4 {[%clk 0:00:27.4]} 26... Nf8
{[%clk 0:00:15]} 27. Bxe6+ {[%clk 0:00:26.5]} 27... Nxe6 {[%clk 0:00:15.9]} 28.
Qc4 {[%clk 0:00:26.8]} 28... Kf7 {[%clk 0:00:14.8]} 29. Qc3 {[%clk 0:00:24.7]}
29... Nd4 {[%clk 0:00:13.5]} 30. Nc4 {[%clk 0:00:24.9]} 30... Ne2+ {[%clk
0:00:13.2]} 0-1

[Event "*** Titled Tuesday Blitz"]
[Site "Chess.com"]
[Date "2020.10.27"]
[Round "1"]
[White "MomchilPetkov"]
[Black "Marina_Chess_Rus"]
[Result "1-0"]
[WhiteElo "2629"]
[BlackElo "2287"]
[TimeControl "180+1"]
[EndTime "10:06:47 PDT"]
[Termination "MomchilPetkov won on time"]

1. Nf3 {[%clk 0:03:00.8]} 1... d5 {[%clk 0:02:59.3]} 2. d4 {[%clk 0:02:58.1]}
2... Nf6 {[%clk 0:02:58.7]} 3. Bf4 {[%clk 0:02:58.1]} 3... c5 {[%clk 0:02:56.9]}
4. e3 {[%clk 0:02:58]} 4... Nc6 {[%clk 0:02:56.3]} 5. Nbd2 {[%clk 0:02:52.5]}
5... Bg4 {[%clk 0:02:53.1]} 6. c3 {[%clk 0:02:42.4]} 6... e6 {[%clk 0:02:51.9]}
7. Qb3 {[%clk 0:02:33]} 7... Qb6 {[%clk 0:02:47.8]} 8. Ne5 {[%clk 0:02:32.7]}
8... c4 {[%clk 0:02:41.1]} 9. Qc2 {[%clk 0:02:23.4]} 9... Bf5 {[%clk 0:02:39.3]}
10. Qc1 {[%clk 0:02:23.5]} 10... Be7 {[%clk 0:02:34.8]} 11. Be2 {[%clk
0:02:23.2]} 11... O-O {[%clk 0:02:25.2]} 12. g4 {[%clk 0:01:57.7]} 12... Nxe5
{[%clk 0:01:57.7]} 13. dxe5 {[%clk 0:01:55.3]} 13... Nxg4 {[%clk 0:01:54.2]} 14.
Rg1 {[%clk 0:01:54.2]} 14... h5 {[%clk 0:01:19.6]} 15. h3 {[%clk 0:01:50.4]}
15... Nxf2 {[%clk 0:01:09]} 16. Kxf2 {[%clk 0:01:48.1]} 16... Bh4+ {[%clk
0:01:08.7]} 17. Kg2 {[%clk 0:01:36.7]} 17... g5 {[%clk 0:01:02]} 18. Kh2 {[%clk
0:01:27.6]} 18... Qd8 {[%clk 0:00:41.9]} 19. Bxg5 {[%clk 0:00:43]} 19... Bxg5
{[%clk 0:00:37.4]} 20. Nf3 {[%clk 0:00:43.2]} 20... Bg6 {[%clk 0:00:15.5]} 21.
Rxg5 {[%clk 0:00:31]} 21... Kh7 {[%clk 0:00:15.3]} 22. Qg1 {[%clk 0:00:23.1]}
22... Qe7 {[%clk 0:00:08]} 23. Qg3 {[%clk 0:00:21.4]} 23... Rg8 {[%clk
0:00:07.4]} 24. Qh4 {[%clk 0:00:21.4]} 24... Rae8 {[%clk 0:00:01.8]} 25. Rag1
{[%clk 0:00:19.8]} 1-0

[Event "*** Titled Tuesday Blitz"]
[Site "Chess.com"]
[Date "2020.10.27"]
[Round "1"]
[White "Inga83"]
[Black "TimofeevAr"]
[Result "0-1"]
[WhiteElo "2405"]
[BlackElo "2773"]
[TimeControl "180+1"]
[EndTime "10:06:50 PDT"]
[Termination "TimofeevAr won by resignation"]

1. d4 {[%clk 0:02:59.8]} 1... d5 {[%clk 0:02:59.2]} 2. c4 {[%clk 0:02:57.7]}
2... dxc4 {[%clk 0:02:59.4]} 3. e3 {[%clk 0:02:55.8]} 3... Nf6 {[%clk
0:02:58.8]} 4. Bxc4 {[%clk 0:02:55.4]} 4... e6 {[%clk 0:02:59.1]} 5. Nf3 {[%clk
0:02:55.3]} 5... a6 {[%clk 0:02:59.1]} 6. a4 {[%clk 0:02:48.9]} 6... b6 {[%clk
0:02:56.7]} 7. O-O {[%clk 0:02:48.4]} 7... Bb7 {[%clk 0:02:56.9]} 8. Nc3 {[%clk
0:02:45.5]} 8... c5 {[%clk 0:02:56.9]} 9. d5 {[%clk 0:02:43.5]} 9... Nxd5 {[%clk
0:02:46.9]} 10. Ne5 {[%clk 0:02:37.9]} 10... Be7 {[%clk 0:02:42.1]} 11. Qh5
{[%clk 0:02:25.8]} 11... O-O {[%clk 0:02:37.3]} 12. Rd1 {[%clk 0:02:14.6]} 12...
Qc7 {[%clk 0:02:31.8]} 13. Nxd5 {[%clk 0:02:02.8]} 13... exd5 {[%clk 0:02:24.9]}
14. Bxd5 {[%clk 0:01:57.7]} 14... Bxd5 {[%clk 0:02:12.1]} 15. Rxd5 {[%clk
0:01:56.5]} 15... Nc6 {[%clk 0:02:11.5]} 16. Nxc6 {[%clk 0:01:48.2]} 16... Qxc6
{[%clk 0:02:11.6]} 17. Bd2 {[%clk 0:01:40]} 17... Rfd8 {[%clk 0:01:57.7]} 18.
Rxd8+ {[%clk 0:01:38.8]} 18... Rxd8 {[%clk 0:01:56.7]} 19. Bc3 {[%clk
0:01:38.9]} 19... Bf8 {[%clk 0:01:51.8]} 20. h4 {[%clk 0:01:34.1]} 20... h6
{[%clk 0:01:48.3]} 21. Qg4 {[%clk 0:01:32.7]} 21... b5 {[%clk 0:01:43.1]} 22.
axb5 {[%clk 0:01:31.7]} 22... axb5 {[%clk 0:01:43.4]} 23. b3 {[%clk 0:01:28.8]}
23... Rd3 {[%clk 0:01:38.7]} 24. Be5 {[%clk 0:01:20.8]} 24... Rxb3 {[%clk
0:01:30.3]} 25. Rd1 {[%clk 0:01:17.3]} 25... Qe6 {[%clk 0:01:26.4]} 26. Qg3
{[%clk 0:01:14.8]} 26... Qg6 {[%clk 0:01:00.8]} 27. Qf3 {[%clk 0:01:11]} 27...
Rb1 {[%clk 0:00:59.8]} 28. Kh2 {[%clk 0:01:06.2]} 28... Rxd1 {[%clk 0:00:56.7]}
29. Qxd1 {[%clk 0:01:05.3]} 29... Qe6 {[%clk 0:00:56.8]} 30. Qa1 {[%clk
0:01:02.1]} 30... b4 {[%clk 0:00:54.4]} 31. f4 {[%clk 0:00:54.7]} 31... f6
{[%clk 0:00:51]} 32. Bb2 {[%clk 0:00:52.6]} 32... Qxe3 {[%clk 0:00:47.7]} 33.
Qa2+ {[%clk 0:00:51.9]} 33... b3 {[%clk 0:00:47.6]} 34. Qa4 {[%clk 0:00:51.8]}
34... Qd3 {[%clk 0:00:43.3]} 35. Qc6 {[%clk 0:00:49.9]} 35... Qf5 {[%clk
0:00:39.3]} 36. Qc7 {[%clk 0:00:46.6]} 36... h5 {[%clk 0:00:36.6]} 37. Bc3
{[%clk 0:00:45]} 37... Kh7 {[%clk 0:00:35]} 38. Qf7 {[%clk 0:00:43.9]} 38...
Qxf4+ {[%clk 0:00:34.7]} 39. Kg1 {[%clk 0:00:43.2]} 39... Qe3+ {[%clk
0:00:34.3]} 40. Kh1 {[%clk 0:00:42.8]} 40... Qc1+ {[%clk 0:00:33.4]} 41. Kh2
{[%clk 0:00:42.5]} 41... Qxc3 {[%clk 0:00:33.7]} 42. Qxf8 {[%clk 0:00:41.2]}
42... Qe5+ {[%clk 0:00:33.7]} 43. Kh3 {[%clk 0:00:40.2]} 43... b2 {[%clk
0:00:32.4]} 44. Qf7 {[%clk 0:00:37.6]} 44... Qf5+ {[%clk 0:00:32.3]} 0-1

[Event "*** Titled Tuesday Blitz"]
[Site "Chess.com"]
[Date "2020.10.27"]
[Round "1"]
[White "esapunov"]
[Black "andrzej"]
[Result "1-0"]
[WhiteElo "2648"]
[BlackElo "2302"]
[TimeControl "180+1"]
[EndTime "10:06:53 PDT"]
[Termination "esapunov won by checkmate"]

1. c4 {[%clk 0:02:53.5]} 1... Nf6 {[%clk 0:02:58.5]} 2. Nf3 {[%clk 0:02:53.8]}
2... e6 {[%clk 0:02:58.4]} 3. Nc3 {[%clk 0:02:52.1]} 3... d5 {[%clk 0:02:58]} 4.
e3 {[%clk 0:02:52.3]} 4... b6 {[%clk 0:02:56.3]} 5. b3 {[%clk 0:02:51.8]} 5...
Bb7 {[%clk 0:02:56.4]} 6. Bb2 {[%clk 0:02:52.3]} 6... Nbd7 {[%clk 0:02:56.8]} 7.
Rc1 {[%clk 0:02:47.6]} 7... a6 {[%clk 0:02:55.8]} 8. cxd5 {[%clk 0:02:46.1]}
8... exd5 {[%clk 0:02:54.3]} 9. Be2 {[%clk 0:02:39.7]} 9... Bd6 {[%clk
0:02:54.1]} 10. O-O {[%clk 0:02:39.8]} 10... O-O {[%clk 0:02:53.9]} 11. Qc2
{[%clk 0:02:39]} 11... Qe7 {[%clk 0:02:49.6]} 12. Rfe1 {[%clk 0:02:38.1]} 12...
Rfe8 {[%clk 0:02:48.7]} 13. Nd4 {[%clk 0:02:37.9]} 13... Qe5 {[%clk 0:02:42.9]}
14. f4 {[%clk 0:02:37]} 14... Qe7 {[%clk 0:02:38.4]} 15. Nf5 {[%clk 0:02:37]}
15... Qe6 {[%clk 0:02:36.1]} 16. Nxd6 {[%clk 0:02:36.3]} 16... Qxd6 {[%clk
0:02:37]} 17. Bf3 {[%clk 0:02:35.9]} 17... Rad8 {[%clk 0:02:30.3]} 18. Ne2
{[%clk 0:02:35]} 18... c5 {[%clk 0:02:25.9]} 19. Ng3 {[%clk 0:02:34.7]} 19...
Ne4 {[%clk 0:02:23.1]} 20. Bxe4 {[%clk 0:02:32.6]} 20... dxe4 {[%clk 0:02:22.2]}
21. Nf5 {[%clk 0:02:33.1]} 21... Qg6 {[%clk 0:01:57]} 22. Nxg7 {[%clk
0:02:14.5]} 22... Rf8 {[%clk 0:01:56.9]} 23. Qc3 {[%clk 0:02:08.6]} 23... h5
{[%clk 0:01:18.8]} 24. f5 {[%clk 0:01:44.6]} 24... Qh6 {[%clk 0:01:12.9]} 25.
Rf1 {[%clk 0:01:25.6]} 25... Kh7 {[%clk 0:01:12]} 26. Rf4 {[%clk 0:01:18.2]}
26... Rg8 {[%clk 0:01:02.8]} 27. f6 {[%clk 0:01:17.1]} 27... Qg5 {[%clk
0:00:36.2]} 28. Rcf1 {[%clk 0:01:08.4]} 28... Nf8 {[%clk 0:00:33.3]} 29. Rf5
{[%clk 0:01:08]} 29... Qg4 {[%clk 0:00:14.9]} 30. Rxh5+ {[%clk 0:01:00.6]} 30...
Kg6 {[%clk 0:00:14.2]} 31. Rh3 {[%clk 0:00:59.8]} 31... Qe2 {[%clk 0:00:07.8]}
32. Qe5 {[%clk 0:00:53.6]} 32... Rd5 {[%clk 0:00:03.9]} 33. Rg3+ {[%clk
0:00:41.6]} 33... Kh6 {[%clk 0:00:02.9]} 34. Qf4+ {[%clk 0:00:42]} 34... Kh7
{[%clk 0:00:01.5]} 35. Rh3+ {[%clk 0:00:42.2]} 35... Kg6 {[%clk 0:00:01.1]} 36.
Rh6# {[%clk 0:00:42.2]} 1-0

[Event "*** Titled Tuesday Blitz"]
[Site "Chess.com"]
[Date "2020.10.27"]
[Round "1"]
[White "HanSchut"]
[Black "Trankuilizer"]
[Result "0-1"]
[WhiteElo "2243"]
[BlackElo "2588"]
[TimeControl "180+1"]
[EndTime "10:06:53 PDT"]
[Termination "Trankuilizer won by resignation"]

1. e4 {[%clk 0:03:00.9]} 1... d6 {[%clk 0:02:59.6]} 2. d4 {[%clk 0:02:53.5]}
2... Nf6 {[%clk 0:03:00.5]} 3. Nc3 {[%clk 0:02:53.3]} 3... g6 {[%clk 0:03:00.5]}
4. f4 {[%clk 0:02:53.6]} 4... Bg7 {[%clk 0:03:00.6]} 5. Nf3 {[%clk 0:02:54]}
5... O-O {[%clk 0:03:01.1]} 6. Bd3 {[%clk 0:02:53.8]} 6... Na6 {[%clk
0:03:01.5]} 7. O-O {[%clk 0:02:41.7]} 7... c5 {[%clk 0:03:01.6]} 8. Bxa6 {[%clk
0:02:30.6]} 8... bxa6 {[%clk 0:03:00.4]} 9. dxc5 {[%clk 0:02:31.2]} 9... dxc5
{[%clk 0:02:58.9]} 10. e5 {[%clk 0:02:29.7]} 10... Nd7 {[%clk 0:02:51.1]} 11.
Be3 {[%clk 0:02:20.1]} 11... Bb7 {[%clk 0:02:47.5]} 12. Qd2 {[%clk 0:02:19]}
12... Qc7 {[%clk 0:02:06.2]} 13. Nd5 {[%clk 0:02:10.8]} 13... Bxd5 {[%clk
0:01:57.3]} 14. Qxd5 {[%clk 0:02:11.7]} 14... Rac8 {[%clk 0:01:55.1]} 15. e6
{[%clk 0:01:46.7]} 15... Nb6 {[%clk 0:01:52.6]} 16. exf7+ {[%clk 0:01:47]} 16...
Rxf7 {[%clk 0:01:53.3]} 17. Qe6 {[%clk 0:01:37.7]} 17... Qd6 {[%clk 0:01:49.1]}
18. Qe4 {[%clk 0:01:07.2]} 18... Qd5 {[%clk 0:01:47]} 19. Qxd5 {[%clk
0:00:50.6]} 19... Nxd5 {[%clk 0:01:47.9]} 20. Bc1 {[%clk 0:00:49.6]} 20... Nxf4
{[%clk 0:01:27.5]} 21. Bxf4 {[%clk 0:00:36.4]} 21... Rxf4 {[%clk 0:01:27]} 22.
c3 {[%clk 0:00:37.3]} 22... Bf6 {[%clk 0:01:25.9]} 23. Rad1 {[%clk 0:00:34.6]}
23... Ra4 {[%clk 0:01:23.4]} 24. a3 {[%clk 0:00:34.4]} 24... Rb8 {[%clk
0:01:23.3]} 25. Rf2 {[%clk 0:00:31.4]} 25... Rb7 {[%clk 0:01:19.3]} 26. Re2
{[%clk 0:00:27.6]} 26... Kg7 {[%clk 0:01:17.1]} 27. Rd5 {[%clk 0:00:20.5]} 27...
Ra5 {[%clk 0:01:08.1]} 28. Ne5 {[%clk 0:00:18.8]} 28... Rab5 {[%clk 0:01:06.1]}
29. b4 {[%clk 0:00:17.4]} 29... cxb4 {[%clk 0:00:46.5]} 30. c4 {[%clk
0:00:17.8]} 30... Rxd5 {[%clk 0:00:40.5]} 31. cxd5 {[%clk 0:00:18.7]} 31... bxa3
{[%clk 0:00:41.1]} 32. Nc4 {[%clk 0:00:15.6]} 32... Rb3 {[%clk 0:00:32.4]} 33.
g3 {[%clk 0:00:15.1]} 33... Rc3 {[%clk 0:00:31.5]} 34. Na5 {[%clk 0:00:15.4]}
34... Rc5 {[%clk 0:00:29.8]} 35. Nc6 {[%clk 0:00:15.1]} 35... Rxd5 {[%clk
0:00:29.9]} 36. Nxe7 {[%clk 0:00:14.9]} 36... Rd1+ {[%clk 0:00:28.5]} 37. Kg2
{[%clk 0:00:14.8]} 37... a2 {[%clk 0:00:29.4]} 38. Nd5 {[%clk 0:00:13.2]} 38...
a1=Q {[%clk 0:00:28.5]} 0-1

[Event "*** Titled Tuesday Blitz"]
[Site "Chess.com"]
[Date "2020.10.27"]
[Round "1"]
[White "ailime26"]
[Black "vanyakuba"]
[Result "0-1"]
[WhiteElo "1894"]
[BlackElo "2504"]
[TimeControl "180+1"]
[EndTime "10:06:53 PDT"]
[Termination "vanyakuba won by resignation"]

1. e4 {[%clk 0:01:11.7]} 1... d5 {[%clk 0:02:58.4]} 2. exd5 {[%clk 0:01:11.4]}
2... Qxd5 {[%clk 0:02:49.6]} 3. Nc3 {[%clk 0:01:12.3]} 3... Qa5 {[%clk
0:02:48.2]} 4. Nf3 {[%clk 0:01:12.4]} 4... Nf6 {[%clk 0:02:47.5]} 5. d4 {[%clk
0:01:12.4]} 5... Bg4 {[%clk 0:02:47.7]} 6. Bd2 {[%clk 0:01:12.3]} 6... c6 {[%clk
0:02:36.9]} 7. h3 {[%clk 0:00:59.1]} 7... Bf5 {[%clk 0:02:35.1]} 8. g4 {[%clk
0:00:36.4]} 8... Bg6 {[%clk 0:02:34.9]} 9. Bg2 {[%clk 0:00:36.5]} 9... e6 {[%clk
0:02:29.8]} 10. O-O {[%clk 0:00:36.1]} 10... Qc7 {[%clk 0:02:29.3]} 11. Ne5
{[%clk 0:00:36.4]} 11... Nbd7 {[%clk 0:02:26.4]} 12. f4 {[%clk 0:00:36.5]} 12...
O-O-O {[%clk 0:02:26.1]} 13. Be3 {[%clk 0:00:35.7]} 13... Nxe5 {[%clk
0:02:15.3]} 14. fxe5 {[%clk 0:00:35.2]} 14... Nd5 {[%clk 0:02:15.2]} 15. Nxd5
{[%clk 0:00:34.2]} 15... exd5 {[%clk 0:02:15.4]} 16. b3 {[%clk 0:00:33.1]} 16...
Be7 {[%clk 0:02:00.6]} 17. c4 {[%clk 0:00:30.5]} 17... dxc4 {[%clk 0:01:59.3]}
18. bxc4 {[%clk 0:00:18.5]} 18... h5 {[%clk 0:01:16.9]} 19. g5 {[%clk
0:00:17.9]} 19... Bc5 {[%clk 0:01:06.5]} 20. Rc1 {[%clk 0:00:17.6]} 20... Rhe8
{[%clk 0:01:04.1]} 21. Qe2 {[%clk 0:00:17]} 21... Bxd4 {[%clk 0:01:02.4]} 22.
Bxd4 {[%clk 0:00:17.9]} 22... Rxd4 {[%clk 0:01:02.9]} 23. Qe3 {[%clk 0:00:18.4]}
23... Qxe5 {[%clk 0:00:58.6]} 24. Qf2 {[%clk 0:00:17.5]} 24... Qe3 {[%clk
0:00:50.6]} 25. Kh2 {[%clk 0:00:17.1]} 25... Qxf2 {[%clk 0:00:50.7]} 26. Rxf2
{[%clk 0:00:18]} 26... h4 {[%clk 0:00:47.3]} 27. Rc3 {[%clk 0:00:18.3]} 27...
Kc7 {[%clk 0:00:44.9]} 28. a3 {[%clk 0:00:19.2]} 28... Re1 {[%clk 0:00:42.6]}
29. Rb3 {[%clk 0:00:20.1]} 29... Rxc4 {[%clk 0:00:39.1]} 30. Rd3 {[%clk
0:00:20]} 30... Bxd3 {[%clk 0:00:36.6]} 31. Rxf7+ {[%clk 0:00:19.5]} 31... Kb6
{[%clk 0:00:36.9]} 32. a4 {[%clk 0:00:19.4]} 32... Rc2 {[%clk 0:00:35.2]} 33.
a5+ {[%clk 0:00:18.3]} 33... Kxa5 {[%clk 0:00:35.5]} 34. Rxb7 {[%clk 0:00:19.2]}
34... Bf1 {[%clk 0:00:32.8]} 35. Rxa7+ {[%clk 0:00:18.7]} 35... Kb6 {[%clk
0:00:33]} 36. Ra6+ {[%clk 0:00:16.7]} 36... Kxa6 {[%clk 0:00:32.6]} 37. Kg1
{[%clk 0:00:16]} 37... Rxg2+ {[%clk 0:00:32.2]} 0-1

[Event "*** Titled Tuesday Blitz"]
[Site "Chess.com"]
[Date "2020.10.27"]
[Round "1"]
[White "BillCoe"]
[Black "TheCavemanChesss"]
[Result "0-1"]
[WhiteElo "2014"]
[BlackElo "2515"]
[TimeControl "180+1"]
[EndTime "10:06:56 PDT"]
[Termination "TheCavemanChesss won by resignation"]

1. e4 {[%clk 0:02:57.5]} 1... e5 {[%clk 0:03:00]} 2. Nf3 {[%clk 0:02:56.2]} 2...
Nc6 {[%clk 0:03:00.3]} 3. Bb5 {[%clk 0:02:55]} 3... Nf6 {[%clk 0:03:00]} 4. O-O
{[%clk 0:02:54.3]} 4... Nxe4 {[%clk 0:03:00.1]} 5. Re1 {[%clk 0:02:53.4]} 5...
Nd6 {[%clk 0:03:00.3]} 6. Nxe5 {[%clk 0:02:51.8]} 6... Be7 {[%clk 0:02:59]} 7.
Nxc6 {[%clk 0:02:50.4]} 7... dxc6 {[%clk 0:02:59.9]} 8. Bf1 {[%clk 0:02:50.6]}
8... O-O {[%clk 0:02:59.2]} 9. d4 {[%clk 0:02:50.5]} 9... Re8 {[%clk 0:02:56.9]}
10. Nc3 {[%clk 0:02:47.5]} 10... Bf6 {[%clk 0:02:52.3]} 11. Rxe8+ {[%clk
0:02:41.1]} 11... Qxe8 {[%clk 0:02:53.2]} 12. Ne2 {[%clk 0:02:26.2]} 12... Bg4
{[%clk 0:02:31]} 13. h3 {[%clk 0:02:23.1]} 13... Bxe2 {[%clk 0:02:25.9]} 14.
Bxe2 {[%clk 0:02:18.4]} 14... Bxd4 {[%clk 0:02:24.3]} 15. Qxd4 {[%clk 0:02:18]}
15... Qxe2 {[%clk 0:02:24.2]} 16. Bf4 {[%clk 0:01:56.7]} 16... Qxc2 {[%clk
0:02:20.9]} 17. Bxd6 {[%clk 0:01:56.2]} 17... cxd6 {[%clk 0:02:11.8]} 18. Qxd6
{[%clk 0:01:39]} 18... Qxb2 {[%clk 0:02:08.5]} 19. Rd1 {[%clk 0:01:38.2]} 19...
g6 {[%clk 0:02:02.7]} 20. a4 {[%clk 0:01:32.8]} 20... a5 {[%clk 0:01:56.8]} 21.
Qc7 {[%clk 0:01:26.2]} 21... Qb4 {[%clk 0:00:47.7]} 22. Rd7 {[%clk 0:01:21]}
22... Rf8 {[%clk 0:00:46.5]} 23. Qxb7 {[%clk 0:01:15.6]} 23... Qxb7 {[%clk
0:00:20.3]} 24. Rxb7 {[%clk 0:01:15]} 24... Rc8 {[%clk 0:00:20.8]} 25. Kf1
{[%clk 0:01:05.4]} 25... c5 {[%clk 0:00:20.7]} 26. Ke2 {[%clk 0:01:05]} 26... c4
{[%clk 0:00:21.2]} 27. Kd2 {[%clk 0:01:05.4]} 27... c3+ {[%clk 0:00:21.3]} 28.
Kc2 {[%clk 0:01:05.5]} 28... Rc4 {[%clk 0:00:21.8]} 29. Ra7 {[%clk 0:00:58.3]}
29... Rxa4 {[%clk 0:00:22.1]} 30. Kxc3 {[%clk 0:00:58]} 30... Ra2 {[%clk
0:00:22.6]} 31. Kd4 {[%clk 0:00:18.2]} 31... Rxf2 {[%clk 0:00:22.3]} 32. Rxa5
{[%clk 0:00:15.3]} 32... Rxg2 {[%clk 0:00:22]} 0-1